lending/lending_fUSD_20241115
["ID","MTS","AMOUNT","RATE_DAILY","PERIOD"]
[342319375,1731702635462,-500.0,9.783e-05,2]
[342319376,1731702635471,-500.0,9.783e-05,2]
[342319377,1731702635481,-500.0,9.783e-05,2]
[342319378,1731702635490,-453.03600422,9.783e-05,2]
[342319379,1731702635499,-500.0,9.783e-05,2]
[342319380,1731702635508,-500.0,9.783e-05,2]
[342319381,1731702635517,-500.0,9.783e-05,2]
[342319382,1731702635526,-500.0,9.783e-05,2]
[342319383,1731702635540,-500.0,9.783e-05,2]
[342319384,1731702635549,-500.0,9.783e-05,2]
[342319385,1731702635558,-500.0,9.783e-05,2]
[342319386,1731702635568,-500.0,9.783e-05,2]
[342319387,1731702635582,-500.0,9.783e-05,2]
[342319388,1731702635592,-500.0,9.783e-05,2]
[342319389,1731702635602,-500.0,9.783e-05,2]
[342319390,1731702635613,-500.0,9.783e-05,2]
[342319391,1731702635622,-603.97,9.783e-05,2]
[342319392,1731702635631,-500.0,9.783e-05,2]
[342319393,1731702635641,-557.47,9.783e-05,2]
[342319394,1731702635650,-500.0,9.783e-05,2]
[342319395,1731702635659,-507.41,9.783e-05,2]
[342319396,1731702635669,-500.0,9.783e-05,2]
[342319397,1731702635678,-500.0,9.783e-05,2]
[342319398,1731702635688,-500.0,9.783e-05,2]
[342319399,1731702635697,-500.0,9.783e-05,2]
[342319400,1731702635708,-329.03658994,9.783e-05,2]
[342319401,1731702635718,-500.0,9.783e-05,2]
[342319402,1731702635727,-500.0,9.783e-05,2]
[342319403,1731702635741,-500.0,9.783e-05,2]
[342319404,1731702635750,-500.0,9.783e-05,2]
[342319405,1731702635760,-500.0,9.783e-05,2]
[342319406,1731702635769,-516.86,9.783e-05,2]
[342319407,1731702635778,-544.38008,9.783e-05,2]
[342319408,1731702635788,-500.0,9.783e-05,2]
[342319409,1731702635798,-686.25,9.783e-05,2]
[342319410,1731702635808,-1704.22,9.783e-05,2]
[342319411,1731702635818,-500.0,9.783e-05,2]
[342319412,1731702635830,-500.0,9.783e-05,2]
[342319413,1731702635840,-500.0,9.783e-05,2]
[342319414,1731702635850,-1696.22,9.783e-05,2]
[342319415,1731702635859,-500.0,9.783e-05,2]
[342319416,1731702635869,-500.0,9.783e-05,2]
[342319417,1731702635879,-500.0,9.783e-05,2]
[342319418,1731702635889,-500.0,9.783e-05,2]
[342319419,1731702635899,-500.0,9.783e-05,2]
[342319420,1731702635909,-500.0,9.783e-05,2]
[342319421,1731702635919,-500.0,9.783e-05,2]
[342319422,1731702635929,-1018.53,9.783e-05,2]
[342319423,1731702635939,-500.0,9.783e-05,2]
[342319424,1731702635949,-500.0,9.783e-05,2]
[342319425,1731702635960,-718.5,9.783e-05,2]
[342319426,1731702635970,-1416.56,9.783e-05,2]
[342319427,1731702635980,-500.0,9.783e-05,2]
[342319428,1731702635990,-500.0,9.783e-05,2]
[342319429,1731702635999,-500.0,9.783e-05,2]
[342319430,1731702636010,-500.0,9.783e-05,2]
[342319431,1731702636020,-500.0,9.783e-05,2]
[342319432,1731702636030,-500.0,9.783e-05,2]
[342319433,1731702636039,-612.6,9.783e-05,2]
[342319434,1731702636050,-500.0,9.783e-05,2]
[342319435,1731702636059,-500.0,9.783e-05,2]
[342319436,1731702636068,-500.0,9.783e-05,2]
[342319437,1731702636083,-500.0,9.783e-05,2]
[342319438,1731702636093,-500.0,9.783e-05,2]
[342319439,1731702636103,-500.0,9.783e-05,2]
[342319440,1731702636112,-500.0,9.783e-05,2]
[342319441,1731702636121,-1493.91,9.783e-05,2]
[342319442,1731702636132,-500.0,9.783e-05,2]
[342319443,1731702636142,-1342.95,9.783e-05,2]
[342319444,1731702636152,-500.0,9.783e-05,2]
[342319445,1731702636162,-500.0,9.783e-05,2]
[342319446,1731702636172,-541.77,9.784e-05,2]
[342319447,1731702636182,-541.77,9.784e-05,2]
[342319448,1731702636191,-541.77,9.784e-05,2]
[342319449,1731702636201,-500.0,9.784e-05,2]
[342319450,1731702636500,-500.0,9.784e-05,2]
[342319451,1731702636511,-500.0,9.784e-05,2]
[342319452,1731702636521,-500.0,9.784e-05,2]
[342319453,1731702636532,-500.0,9.784e-05,2]
[342319454,1731702636545,-521.87302874,9.784e-05,2]
[342319455,1731702636556,-1880.87,9.784e-05,2]
[342319456,1731702636567,-1880.87,9.784e-05,2]
[342319457,1731702636579,-1880.87,9.784e-05,2]
[342319458,1731702636590,-990.77,9.784e-05,2]
[342319459,1731702636600,-990.77,9.784e-05,2]
[342319460,1731702636609,-990.77,9.784e-05,2]
[342319461,1731702636620,-606.75,9.784e-05,2]
[342319462,1731702636630,-606.75,9.784e-05,2]
[342319463,1731702636639,-606.75,9.784e-05,2]
[342319464,1731702636648,-500.0,9.784e-05,2]
[342319465,1731702636659,-500.0,9.784e-05,2]
[342319466,1731702636668,-500.0,9.784e-05,2]
[342319467,1731702636677,-500.0,9.784e-05,2]
[342319468,1731702636686,-500.0,9.784e-05,2]
[342319469,1731702636696,-500.0,9.784e-05,2]
[342319470,1731702636706,-500.0,9.784e-05,2]
[342319471,1731702636715,-500.0,9.784e-05,2]
[342319472,1731702636726,-541.77,9.785e-05,2]
[342319473,1731702636736,-541.77,9.785e-05,2]
[342319474,1731702636745,-541.77,9.785e-05,2]
[342319475,1731702636755,-541.77,9.785e-05,2]
[342319476,1731702636765,-541.77,9.785e-05,2]
[342319477,1731702636774,-500.0,9.785e-05,2]
[342319478,1731702636783,-500.0,9.785e-05,2]
[342319479,1731702636793,-500.0,9.785e-05,2]
[342319480,1731702636802,-500.0,9.785e-05,2]
[342319481,1731702636812,-327.6829472,9.785e-05,2]
[342319482,1731702636821,-1880.87,9.785e-05,2]
[342319483,1731702636839,-1880.87,9.785e-05,2]
[342319484,1731702636849,-1880.87,9.785e-05,2]
[342319485,1731702636858,-1880.87,9.785e-05,2]
[342319486,1731702636868,-1880.87,9.785e-05,2]
[342319487,1731702636877,-990.77,9.785e-05,2]
[342319488,1731702636887,-990.77,9.785e-05,2]
[342319489,1731702636897,-990.77,9.785e-05,2]
[342319490,1731702636906,-990.77,9.785e-05,2]
[342319491,1731702636916,-990.77,9.785e-05,2]
[342319492,1731702636926,-606.75,9.785e-05,2]
[342319493,1731702636936,-606.75,9.785e-05,2]
[342319494,1731702636947,-606.75,9.785e-05,2]
[342319495,1731702636957,-606.75,9.785e-05,2]
[342319496,1731702636967,-606.75,9.785e-05,2]
[342319497,1731702636977,-500.0,9.785e-05,2]
[342319498,1731702636987,-500.0,9.785e-05,2]
[342319499,1731702636996,-500.0,9.785e-05,2]
[342319500,1731702637007,-500.0,9.785e-05,2]
[342319501,1731702637016,-500.0,9.785e-05,2]
[342319502,1731702637025,-500.0,9.785e-05,2]
[342319503,1731702637035,-500.0,9.785e-05,2]
[342319504,1731702637045,-500.0,9.785e-05,2]
[342319505,1731702637055,-500.0,9.785e-05,2]
[342319506,1731702637065,-500.0,9.785e-05,2]
[342319507,1731702637082,-184.69408136,9.785e-05,2]
[342319508,1731702637091,-541.77,9.786e-05,2]
[342319509,1731702637101,-541.77,9.786e-05,2]
[342319510,1731702637111,-541.77,9.786e-05,2]
[342319511,1731702637120,-541.77,9.786e-05,2]
[342319512,1731702637130,-541.77,9.786e-05,2]
[342319513,1731702637139,-541.77,9.786e-05,2]
[342319514,1731702637149,-1880.87,9.786e-05,2]
[342319515,1731702637159,-1880.87,9.786e-05,2]
[342319516,1731702637168,-1880.87,9.786e-05,2]
[342319517,1731702637177,-1880.87,9.786e-05,2]
[342319518,1731702637187,-1880.87,9.786e-05,2]
[342319519,1731702637196,-1880.87,9.786e-05,2]
[342319520,1731702637205,-990.77,9.786e-05,2]
[342319521,1731702637214,-990.77,9.786e-05,2]
[342319522,1731702637223,-990.77,9.786e-05,2]
[342319523,1731702637233,-990.77,9.786e-05,2]
[342319524,1731702637243,-990.77,9.786e-05,2]
[342319525,1731702637251,-990.77,9.786e-05,2]
[342319526,1731702637260,-606.75,9.786e-05,2]
[342319527,1731702637270,-606.75,9.786e-05,2]
[342319528,1731702637280,-606.75,9.786e-05,2]
[342319529,1731702637289,-606.75,9.786e-05,2]
[342319530,1731702637299,-606.75,9.786e-05,2]
[342319531,1731702637309,-606.75,9.786e-05,2]
[342319532,1731702637319,-500.0,9.786e-05,2]
[342319533,1731702637332,-395.38228688,9.786e-05,2]
[342319534,1731702637341,-500.0,9.786e-05,2]
[342319535,1731702637350,-500.0,9.786e-05,2]
[342319536,1731702637359,-500.0,9.786e-05,2]
[342319537,1731702637369,-263.37,9.786e-05,2]
[342319538,1731702637379,-500.0,9.786e-05,2]
[342319539,1731702637388,-499.64,9.786e-05,2]
[342319540,1731702637398,-500.0,9.786e-05,2]
[342319541,1731702637407,-500.0,9.786e-05,2]
[342319542,1731702637416,-500.0,9.786e-05,2]
[342319543,1731702637426,-500.0,9.786e-05,2]
[342319544,1731702637435,-248.19,9.786e-05,2]
[342319545,1731702637444,-548.25,9.786e-05,2]
[342319546,1731702637454,-500.0,9.786e-05,2]
[342319547,1731702637464,-500.0,9.786e-05,2]
[342319548,1731702637474,-356.06,9.786e-05,2]
[342319549,1731702637484,-636.18,9.786e-05,2]
[342319550,1731702637493,-500.0,9.786e-05,2]
[342319551,1731702637503,-434.02,9.786e-05,2]
[342319552,1731702637513,-500.0,9.786e-05,2]
[342319553,1731702637523,-500.0,9.786e-05,2]
[342319554,1731702637532,-494.1,9.786e-05,2]
[342319555,1731702637545,-500.0,9.786e-05,2]
[342319556,1731702637555,-500.0,9.786e-05,2]
[342319557,1731702637566,-500.0,9.786e-05,2]
[342319558,1731702637578,-500.0,9.786e-05,2]
[342319559,1731702637589,-500.0,9.786e-05,2]
[342319560,1731702637599,-500.0,9.786e-05,2]
[342319561,1731702637609,-500.0,9.786e-05,2]
[342319562,1731702637621,-500.0,9.786e-05,2]
[342319563,1731702637631,-500.0,9.786e-05,2]
[342319564,1731702637640,-500.0,9.786e-05,2]
[342319565,1731702637649,-500.0,9.786e-05,2]
[342319566,1731702637659,-500.0,9.786e-05,2]
[342319567,1731702637670,-500.0,9.786e-05,2]
[342319568,1731702637679,-500.0,9.786e-05,2]
[342319569,1731702637689,-631.33,9.786e-05,2]
[342319570,1731702637699,-500.0,9.786e-05,2]
[342319571,1731702637709,-345.10005762,9.786e-05,2]
[342319572,1731702637718,-541.77,9.787e-05,2]
[342319573,1731702637728,-541.77,9.787e-05,2]
[342319574,1731702637737,-541.77,9.787e-05,2]
[342319575,1731702637746,-541.77,9.787e-05,2]
[342319576,1731702637756,-541.77,9.787e-05,2]
[342319577,1731702637766,-541.82301417,9.787e-05,2]
[342319578,1731702637775,-1880.87,9.787e-05,2]
[342319579,1731702637785,-1880.87,9.787e-05,2]
[342319580,1731702637795,-1880.87,9.787e-05,2]
[342319581,1731702637805,-1880.87,9.787e-05,2]
[342319582,1731702637815,-1880.87,9.787e-05,2]
[342319583,1731702637829,-1881.01092014,9.787e-05,2]
[342319584,1731702637839,-990.77,9.787e-05,2]
[342319585,1731702637853,-990.77,9.787e-05,2]
[342319586,1731702637863,-990.77,9.787e-05,2]
[342319587,1731702637874,-990.77,9.787e-05,2]
[342319588,1731702637883,-990.77,9.787e-05,2]
[342319589,1731702637893,-990.86224559,9.787e-05,2]
[342319590,1731702637904,-606.75,9.787e-05,2]
[342319591,1731702637913,-606.75,9.787e-05,2]
[342319592,1731702637923,-606.75,9.787e-05,2]
[342319593,1731702637933,-606.75,9.787e-05,2]
[342319594,1731702637943,-606.75,9.787e-05,2]
[342319595,1731702637953,-606.83431663,9.787e-05,2]
[342319596,1731702637962,-1029.90189458,9.8e-05,2]
[342319597,1731702637972,-1076.65200368,9.8e-05,2]
[342319598,1731702637981,-6734.693,9.815e-05,2]
[342319599,1731702637991,-1255.0,9.815e-05,2]
[342319600,1731702638000,-631.0,9.815e-05,2]
[342319601,1731702638010,-1092.0,9.815e-05,2]
[342319602,1731702638019,-12180.12002615,9.9e-05,2]
[342319603,1731702638029,-229.0,9.9e-05,2]
[342319604,1731702638038,-520.1,9.9e-05,2]
[342319605,1731702638047,-363.0,9.9e-05,2]
[342319606,1731702638057,-1000.0,9.9e-05,2]
[342319607,1731702638067,-614.81,9.923e-05,2]
[342319608,1731702638080,-255.0,9.969e-05,2]
[342319609,1731702638089,-570.64685611,9.973e-05,2]
[342319610,1731702638098,-500.0,9.973e-05,2]
[342319611,1731702638108,-5000.0,9.987e-05,2]
[342319612,1731702638118,-1540.9062997,9.991e-05,2]
[342319613,1731702638128,-1000.0,9.991e-05,2]
[342319614,1731702638138,-1320.1043753,9.993e-05,2]
[342319615,1731702638147,-1099.3024509,9.993e-05,2]
[342319616,1731702638157,-878.5005265,9.993e-05,2]
[342319617,1731702638167,-657.6986021,9.993e-05,2]
[342319618,1731702638176,-436.8966777,9.993e-05,2]
[342319619,1731702638185,-500.0,9.997e-05,2]
[342319620,1731702638194,-500.0,9.997e-05,2]
[342319621,1731702638203,-500.0,9.997e-05,2]
[342319622,1731702638211,-500.0,9.997e-05,2]
[342319623,1731702638220,-600.02010449,9.997e-05,2]
[342319624,1731702638230,-500.0,9.997e-05,2]
[342319625,1731702638240,-500.0,9.997e-05,2]
[342319626,1731702638249,-500.0,9.997e-05,2]
[342319627,1731702638258,-512.96,9.997e-05,2]
[342319628,1731702638268,-500.0,9.997e-05,2]
[342319629,1731702638282,-500.0,9.997e-05,2]
[342319630,1731702638292,-208.28,9.997e-05,2]
[342319631,1731702638301,-500.0,9.997e-05,2]
[342319632,1731702638316,-500.0,9.997e-05,2]
[342319633,1731702638329,-500.0,9.997e-05,2]
[342319634,1731702638339,-526.05,9.997e-05,2]
[342319635,1731702638348,-500.0,9.998e-05,2]
[342319636,1731702638358,-500.0,9.998e-05,2]
[342319637,1731702638368,-572.85509253,9.998e-05,2]
[342319638,1731702638378,-500.0,9.998e-05,2]
[342319639,1731702638392,-520.14,9.998e-05,2]
[342319641,1731702638402,-500.0,9.998e-05,2]
[342319643,1731702638412,-500.0,9.998e-05,2]
[342319645,1731702638422,-234.72,9.998e-05,2]
[342319647,1731702638432,-500.0,9.998e-05,2]
[342319648,1731702638442,-259.43,9.998e-05,2]
[342319649,1731702638452,-632.37,9.998e-05,2]
[342319650,1731702638463,-500.0,9.998e-05,2]
[342319651,1731702638474,-419.57,9.998e-05,2]
[342319652,1731702638484,-383.02,9.998e-05,2]
[342319653,1731702638494,-472.11,9.998e-05,2]
[342319654,1731702638504,-500.0,9.998e-05,2]
[342319655,1731702638513,-500.0,9.998e-05,2]
[342319656,1731702638523,-686.25,9.998e-05,2]
[342319657,1731702638534,-686.25,9.998e-05,2]
[342319658,1731702638546,-1704.22,9.998e-05,2]
[342319659,1731702638555,-1704.22,9.998e-05,2]
[342319660,1731702638565,-548.25,9.998e-05,2]
[342319661,1731702638578,-500.0,9.998e-05,2]
[342319662,1731702638589,-645.12,9.998e-05,2]
[342319663,1731702638599,-500.0,9.998e-05,2]
[342319664,1731702638609,-500.0,9.998e-05,2]
[342319665,1731702638621,-1696.22,9.998e-05,2]
[342319666,1731702638630,-1696.22,9.998e-05,2]
[342319667,1731702638639,-500.0,9.998e-05,2]
[342319668,1731702638649,-363.9,9.998e-05,2]
[342319669,1731702638659,-500.0,9.998e-05,2]
[342319670,1731702638669,-500.0,9.998e-05,2]
[342319671,1731702638679,-500.0,9.998e-05,2]
[342319672,1731702638689,-500.0,9.998e-05,2]
[342319673,1731702638699,-500.0,9.998e-05,2]
[342319674,1731702638709,-500.0,9.998e-05,2]
[342319675,1731702638719,-500.0,9.998e-05,2]
[342319676,1731702638729,-500.0,9.998e-05,2]
[342319677,1731702638739,-1018.53,9.998e-05,2]
[342319678,1731702638749,-1018.53,9.998e-05,2]
[342319679,1731702638759,-449.41,9.998e-05,2]
[342319680,1731702638768,-500.0,9.998e-05,2]
[342319681,1731702638777,-500.0,9.998e-05,2]
[342319682,1731702638787,-500.0,9.998e-05,2]
[342319683,1731702638797,-500.0,9.998e-05,2]
[342319684,1731702638806,-718.5,9.998e-05,2]
[342319685,1731702638815,-718.5,9.998e-05,2]
[342319686,1731702638827,-586.3,9.998e-05,2]
[342319687,1731702638839,-500.0,9.998e-05,2]
[342319688,1731702638848,-500.0,9.998e-05,2]
[342319689,1731702638858,-500.0,9.998e-05,2]
[342319690,1731702638868,-500.0,9.998e-05,2]
[342319691,1731702638877,-500.0,9.998e-05,2]
[342319692,1731702638887,-500.0,9.998e-05,2]
[342319693,1731702638897,-500.0,9.998e-05,2]
[342319694,1731702638907,-525.27,9.998e-05,2]
[342319695,1731702638916,-500.0,9.998e-05,2]
[342319696,1731702638926,-500.0,9.998e-05,2]
[342319697,1731702638936,-308.90566647,9.998e-05,2]
[342319698,1731702638946,-500.0,9.998e-05,2]
[342319699,1731702638956,-500.0,9.998e-05,2]
[342319700,1731702638966,-500.0,9.998e-05,2]
[342319701,1731702638975,-500.0,9.998e-05,2]
[342319702,1731702638985,-500.0,9.998e-05,2]
[342319703,1731702638996,-500.0,9.998e-05,2]
[342319704,1731702639005,-500.0,9.998e-05,2]
[342319705,1731702639015,-500.0,9.998e-05,2]
[342319706,1731702639024,-500.0,9.998e-05,2]
[342319707,1731702639033,-500.0,9.998e-05,2]
[342319708,1731702639043,-500.0,9.998e-05,2]
[342319709,1731702639053,-500.0,9.998e-05,2]
[342319710,1731702639063,-500.0,9.998e-05,2]
[342319711,1731702639078,-500.0,9.998e-05,2]
[342319712,1731702639088,-500.0,9.998e-05,2]
[342319713,1731702639098,-500.0,9.998e-05,2]
[342319714,1731702639107,-500.0,9.998e-05,2]
[342319715,1731702639117,-360.54,9.998e-05,2]
[342319716,1731702639127,-1493.91,9.998e-05,2]
[342319717,1731702639137,-1493.91,9.998e-05,2]
[342319718,1731702639147,-500.0,9.998e-05,2]
[342319719,1731702639157,-500.0,9.998e-05,2]
[342319720,1731702639167,-500.0,9.998e-05,2]
[342319721,1731702639176,-500.0,9.998e-05,2]
[342319722,1731702639186,-500.0,9.998e-05,2]
[342319723,1731702639195,-500.0,9.998e-05,2]
[342319724,1731702639205,-512.96,9.998e-05,2]
[342319725,1731702639215,-500.0,9.998e-05,2]
[342319726,1731702639225,-500.0,9.998e-05,2]
[342319727,1731702639234,-500.0,9.998e-05,2]
[342319728,1731702639244,-500.0,9.998e-05,2]
[342319729,1731702639253,-531.17,9.998e-05,2]
[342319730,1731702639263,-195.17,9.998e-05,2]
[342319731,1731702639272,-431.59014058,9.998e-05,2]
[342319732,1731702639281,-500.0,9.998e-05,2]
[342319733,1731702639291,-500.0,9.998e-05,2]
[342319734,1731702639301,-500.0,9.998e-05,2]
[342319735,1731702639311,-500.0,9.998e-05,2]
[342319736,1731702639320,-609.74,9.998e-05,2]
[342319737,1731702639334,-257.60515579,9.999e-05,2]
[342319738,1731702639344,-2390.88907257,9.999e-05,2]
[342319739,1731702639354,-9397.64,9.999e-05,2]
[342319740,1731702639364,-170.89,9.999e-05,2]
[342319741,1731702639374,-500.0,9.999e-05,2]
[342319742,1731702639383,-500.0,9.999e-05,2]
[342319743,1731702639393,-210.11,9.999e-05,2]
[342319744,1731702639403,-500.0,9.999e-05,2]
[342319745,1731702639412,-222.94,9.999e-05,2]
[342319746,1731702639422,-455.68,9.999e-05,2]
[342319747,1731702639432,-523.64,9.999e-05,2]
[342319748,1731702639441,-369.8,9.999e-05,2]
[342319749,1731702639450,-616.52,9.999e-05,2]
[342319750,1731702639460,-283.12,9.999e-05,2]
[342319751,1731702639470,-500.0,9.999e-05,2]
[342319752,1731702639479,-290.34,9.999e-05,2]
[342319753,1731702639490,-500.0,9.999e-05,2]
[342319754,1731702639499,-613.24,9.999e-05,2]
[342319755,1731702639509,-500.0,9.999e-05,2]
[342319756,1731702639518,-257.82,9.999e-05,2]
[342319757,1731702639527,-500.0,9.999e-05,2]
[342319758,1731702639541,-514.57,9.999e-05,2]
[342319759,1731702639551,-500.0,9.999e-05,2]
[342319760,1731702639560,-500.0,9.999e-05,2]
[342319761,1731702639570,-441.97,9.999e-05,2]
[342319762,1731702639585,-543.12,9.999e-05,2]
[342319763,1731702639595,-500.0,9.999e-05,2]
[342319764,1731702639604,-213.05,9.999e-05,2]
[342319765,1731702639615,-338.27,9.999e-05,2]
[342319766,1731702639626,-632.78,9.999e-05,2]
[342319767,1731702639635,-513.26,9.999e-05,2]
[342319768,1731702639644,-330.29,9.999e-05,2]
[342319769,1731702639653,-636.79,9.999e-05,2]
[342319770,1731702639662,-412.98,9.999e-05,2]
[342319771,1731702639671,-500.0,9.999e-05,2]
[342319772,1731702639682,-393.9,9.999e-05,2]
[342319773,1731702639691,-608.51,9.999e-05,2]
[342319774,1731702639703,-500.0,9.999e-05,2]
[342319775,1731702639712,-500.0,9.999e-05,2]
[342319777,1731702639722,-289.03,9.999e-05,2]
[342319779,1731702639732,-500.0,9.999e-05,2]
[342319780,1731702639741,-329.46,9.999e-05,2]
[342319782,1731702639751,-500.0,9.999e-05,2]
[342319783,1731702639760,-643.12,9.999e-05,2]
[342319784,1731702639769,-518.92,9.999e-05,2]
[342319785,1731702639779,-500.0,9.999e-05,2]
[342319787,1731702639788,-470.32,9.999e-05,2]
[342319789,1731702639798,-500.0,9.999e-05,2]
[342319790,1731702639807,-215.88,9.999e-05,2]
[342319792,1731702639816,-500.0,9.999e-05,2]
[342319793,1731702639829,-500.0,9.999e-05,2]
[342319794,1731702639838,-552.01,9.999e-05,2]
[342319795,1731702639849,-451.83013163,9.999e-05,2]
[342319796,1731702639858,-500.0,9.999e-05,2]
[342319797,1731702639869,-500.0,9.999e-05,2]
[342319798,1731702639881,-218.99,9.999e-05,2]
[342319799,1731702639891,-500.0,9.999e-05,2]
[342319800,1731702639902,-500.0,9.999e-05,2]
[342319801,1731702639912,-500.0,9.999e-05,2]
[342319802,1731702639923,-500.0,9.999e-05,2]
[342319803,1731702639933,-641.0,9.999e-05,2]
[342319804,1731702639942,-342.13,9.999e-05,2]
[342319805,1731702639952,-207.39,9.999e-05,2]
[342319806,1731702639963,-367.42,9.999e-05,2]
[342319807,1731702639973,-613.6,9.999e-05,2]
[342319808,1731702639983,-500.0,9.999e-05,2]
[342319809,1731702639992,-161.76,9.999e-05,2]
[342319810,1731702640002,-500.0,9.999e-05,2]
[342319811,1731702640012,-500.0,9.999e-05,2]
[342319812,1731702640022,-485.58856753,9.999e-05,2]
[342319813,1731702640032,-500.0,9.999e-05,2]
[342319814,1731702640042,-500.0,9.999e-05,2]
[342319815,1731702640052,-578.72,9.999e-05,2]
[342319816,1731702640061,-391.71,9.999e-05,2]
[342319817,1731702640072,-500.0,9.999e-05,2]
[342319818,1731702640084,-534.1,9.999e-05,2]
[342319819,1731702640094,-500.0,9.999e-05,2]
[342319820,1731702640105,-197.95,9.999e-05,2]
[342319821,1731702640115,-500.0,9.999e-05,2]
[342319822,1731702640124,-454.1,9.999e-05,2]
[342319823,1731702640134,-544.28,9.999e-05,2]
[342319824,1731702640144,-500.0,9.999e-05,2]
[342319825,1731702640154,-500.0,9.999e-05,2]
[342319826,1731702640164,-500.0,9.999e-05,2]
[342319827,1731702640173,-500.0,9.999e-05,2]
[342319828,1731702640182,-500.0,9.999e-05,2]
[342319829,1731702640191,-500.0,9.999e-05,2]
[342319830,1731702640201,-500.0,9.999e-05,2]
[342319831,1731702640211,-500.0,9.999e-05,2]
[342319832,1731702640220,-494.59178518,9.999e-05,2]
[342319833,1731702640230,-156.07,9.999e-05,2]
[342319834,1731702640240,-313.7,9.999e-05,2]
[342319835,1731702640250,-650.04,9.999e-05,2]
[342319836,1731702640260,-650.04,9.999e-05,2]
[342319837,1731702640269,-650.04,9.999e-05,2]
[342319838,1731702640278,-650.04,9.999e-05,2]
[342319839,1731702640288,-528.83,9.999e-05,2]
[342319840,1731702640297,-650.04,9.999e-05,2]
[342319841,1731702640307,-650.04,9.999e-05,2]
[342319842,1731702640316,-650.04,9.999e-05,2]
[342319843,1731702640329,-650.04,9.999e-05,2]
[342319844,1731702640342,-650.04,9.999e-05,2]
[342319845,1731702640352,-650.04,9.999e-05,2]
[342319846,1731702640362,-650.04,9.999e-05,2]
[342319847,1731702640371,-650.04,9.999e-05,2]
[342319848,1731702640381,-650.04,9.999e-05,2]
[342319849,1731702640391,-650.04,9.999e-05,2]
[342319850,1731702640400,-650.04,9.999e-05,2]
[342319851,1731702640410,-500.0,9.999e-05,2]
[342319852,1731702640420,-650.04,9.999e-05,2]
[342319853,1731702640429,-650.04,9.999e-05,2]
[342319854,1731702640439,-500.0,9.999e-05,2]
[342319855,1731702640448,-650.04,9.999e-05,2]
[342319856,1731702640458,-500.0,9.999e-05,2]
[342319857,1731702640470,-650.04,9.999e-05,2]
[342319858,1731702640480,-500.0,9.999e-05,2]
[342319859,1731702640489,-500.0,9.999e-05,2]
[342319860,1731702640499,-650.04,9.999e-05,2]
[342319861,1731702640510,-500.0,9.999e-05,2]
[342319862,1731702640519,-650.04,9.999e-05,2]
[342319863,1731702640528,-500.0,9.999e-05,2]
[342319864,1731702640539,-650.04,9.999e-05,2]
[342319865,1731702640553,-650.11181262,9.999e-05,2]
[342319866,1731702640563,-500.0,9.999e-05,2]
[342319867,1731702640574,-501.29476359,9.999e-05,2]
[342319868,1731702640584,-500.0,9.999e-05,2]
[342319869,1731702640594,-259.21,9.999e-05,2]
[342319870,1731702640604,-634.14,9.999e-05,2]
[342319871,1731702640820,-344.46,9.999e-05,2]
[342319872,1731702640857,-500.0,9.999e-05,2]
[342319873,1731702640868,-500.0,9.999e-05,2]
[342319874,1731702640878,-283.49,9.999e-05,2]
[342319875,1731702640888,-185.47,9.999e-05,2]
[342319876,1731702640899,-500.0,9.999e-05,2]
[342319877,1731702640908,-500.0,9.999e-05,2]
[342319878,1731702640918,-388.89,9.999e-05,2]
[342319879,1731702640928,-500.0,9.999e-05,2]
[342319880,1731702640938,-500.0,9.999e-05,2]
[342319881,1731702640948,-500.0,9.999e-05,2]
[342319882,1731702640958,-500.0,9.999e-05,2]
[342319883,1731702640967,-500.0,9.999e-05,2]
[342319884,1731702640977,-576.64121347,9.999e-05,2]